bitfinex/quotes_BTCUSD_20251015
["timestamp","ask_amount","ask_price","bid_price","bid_amount"]
[1760498068301,0.1954287,112710.0,112700.0,0.00104966]
[1760498068610,0.85050733,112710.0,112700.0,0.01879588]
[1760498068806,0.1954287,112710.0,112700.0,0.19625816]
[1760498069184,0.1954287,112710.0,112700.0,0.17851194]
[1760498070508,0.17917305,112710.0,112700.0,0.17851194]
[1760498071230,0.00172651,112710.0,112700.0,0.17851194]
[1760498071802,0.00172651,112710.0,112700.0,0.29039194]
[1760498072852,0.00172651,112710.0,112700.0,0.17851194]
[1760498073207,0.00172651,112710.0,112700.0,0.29139194]
[1760498073618,0.00172651,112710.0,112700.0,0.17951194]
[1760498073812,0.00172651,112710.0,112700.0,0.29039194]
[1760498074069,0.00172651,112710.0,112700.0,0.29139194]
[1760498074273,0.00172651,112710.0,112700.0,0.17951194]
[1760498074568,0.00172651,112710.0,112700.0,0.29139194]
[1760498075068,0.00172651,112710.0,112700.0,0.17951194]
[1760498075270,0.00172651,112710.0,112700.0,0.29139194]
[1760498075604,0.00172651,112710.0,112700.0,0.17951194]
[1760498075808,0.00172651,112710.0,112700.0,0.29139194]
[1760498076147,0.00172651,112710.0,112700.0,0.17951194]
[1760498076329,0.00172651,112710.0,112700.0,0.29135194]
[1760498077562,0.00172651,112710.0,112700.0,0.17951194]
[1760498077797,0.00172651,112710.0,112700.0,0.29135194]
[1760498077940,0.00172651,112710.0,112700.0,0.17951194]
[1760498078126,0.00172651,112710.0,112700.0,0.29135194]
[1760498078330,0.00172651,112710.0,112700.0,0.17951194]
[1760498078539,0.00172651,112710.0,112700.0,0.29135194]
[1760498079651,0.00172651,112710.0,112700.0,0.17951194]
[1760498079889,0.00172651,112710.0,112700.0,0.29135194]
[1760498080092,0.00172651,112710.0,112700.0,0.41722434]
[1760498080296,0.00172651,112710.0,112700.0,0.30538434]
[1760498080511,0.00172651,112710.0,112700.0,0.41722434]
[1760498081517,0.00172651,112710.0,112700.0,0.30538434]
[1760498081713,0.00172651,112710.0,112700.0,0.41722434]
[1760498084443,0.00162702,112710.0,112700.0,0.41722434]
[1760498086518,0.00162702,112710.0,112700.0,0.41718434]
[1760498087394,0.00162702,112710.0,112700.0,0.17951194]
[1760498087598,0.00162702,112710.0,112700.0,0.29131194]
[1760498087764,0.00162702,112710.0,112700.0,0.17951194]
[1760498087969,0.00162702,112710.0,112700.0,0.29131194]
[1760498088170,0.00162702,112710.0,112700.0,0.17951194]
[1760498088375,0.00162702,112710.0,112700.0,0.29131194]
[1760498088555,0.00162702,112710.0,112700.0,0.17951194]
[1760498088786,0.00162702,112710.0,112700.0,0.29131194]
[1760498088976,0.00162702,112710.0,112700.0,0.17951194]
[1760498089338,0.00162702,112710.0,112700.0,0.29131194]
[1760498091104,0.00162702,112710.0,112700.0,0.17951194]
[1760498091732,0.00162702,112710.0,112700.0,0.29131194]
[1760498095271,0.00162702,112710.0,112700.0,0.17951194]
[1760498095495,0.00162702,112710.0,112700.0,0.29131194]
[1760498095829,0.00162702,112710.0,112700.0,0.17951194]
[1760498096175,0.00162702,112710.0,112700.0,0.29131194]
[1760498096985,0.00162702,112710.0,112700.0,0.17951194]
[1760498097563,0.00162702,112710.0,112700.0,0.29131194]
[1760498098321,0.00162702,112710.0,112700.0,0.17951194]
[1760498098645,0.00162702,112710.0,112700.0,0.29131194]
[1760498098846,0.00162702,112710.0,112700.0,0.17951194]
[1760498099054,0.00162702,112710.0,112700.0,0.29131194]
[1760498099255,0.00162702,112710.0,112700.0,0.17951194]
[1760498099588,0.00162702,112710.0,112700.0,0.29131194]
[1760498100369,0.53381132,112710.0,112700.0,0.17951194]
[1760498100688,0.53381132,112710.0,112700.0,0.29131194]
[1760498100883,0.71125786,112710.0,112700.0,0.00204966]
[1760498101091,0.71125786,112710.0,112700.0,0.01979588]
[1760498101291,0.51048784,112710.0,112700.0,0.19725816]
[1760498101493,0.51048784,112710.0,112700.0,0.39599376]
[1760498101693,0.51048784,112710.0,112700.0,0.39699376]
[1760498101912,0.51048784,112710.0,112700.0,0.28419376]
[1760498102128,0.51048784,112710.0,112700.0,0.39599376]
[1760498102327,0.51048784,112710.0,112700.0,0.28419376]
[1760498102529,0.51048784,112710.0,112700.0,0.39599376]
[1760498102749,0.51048784,112710.0,112700.0,0.39499376]
[1760498103297,0.51048784,112710.0,112700.0,0.39599376]
[1760498103504,0.51048784,112710.0,112700.0,0.28419376]
[1760498103697,0.51048784,112710.0,112700.0,0.21853148]
[1760498103942,0.51048784,112710.0,112700.0,0.10673148]
[1760498104120,0.51048784,112710.0,112700.0,0.21853148]
[1760498104350,0.51048784,112710.0,112700.0,0.10673148]
[1760498104522,0.63352358,112710.0,112700.0,0.10673148]
[1760498104728,1.04963084,112710.0,112700.0,0.10673148]
[1760498105148,1.04963084,112710.0,112700.0,0.12447613]
[1760498105642,1.04963084,112710.0,112700.0,0.12347613]
[1760498105854,1.04963084,112710.0,112700.0,0.10573148]
[1760498107666,1.58181514,112710.0,112700.0,0.10573148]
[1760498109192,1.58181514,112710.0,112700.0,1e-08]
[1760498109617,1.58281514,112710.0,112700.0,1e-08]
[1760498110045,1.59905552,112710.0,112700.0,1e-08]
[1760498111556,1.59805552,112710.0,112700.0,1e-08]
[1760498111754,1.59905552,112710.0,112700.0,1e-08]
[1760498112468,1.59802789,112710.0,112700.0,1e-08]
[1760498112751,1.60002789,112710.0,112700.0,1e-08]
[1760498112978,1.68970997,112710.0,112700.0,1e-08]
[1760498113188,1.60002789,112710.0,112700.0,1e-08]
[1760498113808,1.61394199,112710.0,112700.0,1e-08]
[1760498114918,1.64064139,112710.0,112700.0,1e-08]
[1760498116072,1.62442864,112710.0,112700.0,1e-08]
[1760498116308,1.74125178,112710.0,112700.0,1e-08]
[1760498116518,1.75744744,112710.0,112700.0,1e-08]
[1760498116725,1.74125178,112710.0,112700.0,1e-08]
[1760498118570,1.7156512,112710.0,112700.0,1e-08]
[1760498118774,1.73184688,112710.0,112700.0,1e-08]
[1760498120923,1.71793278,112710.0,112700.0,1e-08]
[1760498121583,1.73657561,112710.0,112700.0,1e-08]
[1760498121755,2.23657561,112710.0,112700.0,1e-08]
[1760498122160,1.59529616,112710.0,112700.0,1e-08]
[1760498122301,1.25529616,112710.0,112700.0,1e-08]
[1760498122519,1.21240108,112710.0,112700.0,1e-08]
[1760498122938,1.55240108,112710.0,112700.0,1e-08]
[1760498123144,2.08535562,112710.0,112700.0,1e-08]
[1760498123396,2.19123187,112710.0,112700.0,1e-08]
[1760498123770,2.20514551,112710.0,112700.0,1e-08]
[1760498124037,2.20414551,112710.0,112700.0,1e-08]
[1760498124193,2.19023187,112710.0,112700.0,1e-08]
[1760498124398,2.18923187,112710.0,112700.0,1e-08]
[1760498124913,2.19023495,112710.0,112700.0,1e-08]
[1760498125856,2.18923495,112710.0,112700.0,1e-08]
[1760498126065,2.19023495,112710.0,112700.0,1e-08]
[1760498126281,2.21699623,112710.0,112700.0,1e-08]
[1760498126463,2.21799899,112710.0,112700.0,1e-08]
[1760498126837,2.20989589,112710.0,112700.0,1e-08]
[1760498127038,2.19123495,112710.0,112700.0,1e-08]
[1760498127244,2.2099128,112710.0,112700.0,1e-08]
[1760498127629,2.23195466,112710.0,112700.0,1e-08]
[1760498128939,1.58253202,112710.0,112700.0,1e-08]
[1760498129180,1.22631553,112710.0,112700.0,1e-08]
[1760498129403,1.2425542,112710.0,112700.0,1e-08]
[1760498129606,1.5825542,112710.0,112700.0,1e-08]
[1760498129768,2.11550874,112710.0,112700.0,1e-08]
[1760498130444,2.23205848,112710.0,112700.0,1e-08]
[1760498130620,2.1403764,112710.0,112700.0,1e-08]
[1760498130806,2.12646195,112710.0,112700.0,1e-08]
[1760498131220,1.56663975,112710.0,112700.0,1e-08]
[1760498132959,1.22663975,112710.0,112700.0,1e-08]
[1760498133753,1.56663975,112710.0,112700.0,1e-08]
[1760498134383,1.57478281,112710.0,112700.0,1e-08]
[1760498134823,1.56663975,112710.0,112700.0,1e-08]
[1760498135239,1.57478567,112710.0,112700.0,1e-08]
[1760498135676,1.59355278,112710.0,112700.0,1e-08]
[1760498136284,1.57478567,112710.0,112700.0,1e-08]
[1760498136455,1.59356466,112710.0,112700.0,1e-08]
[1760498140124,1.59356466,112710.0,112700.0,0.17746229]
[1760498140125,1.56663975,112710.0,112700.0,0.17746229]
[1760498140241,1.56663975,112710.0,112700.0,1e-08]
[1760498140895,0.69368521,112710.0,112700.0,0.00935812]
[1760498141142,1.22663975,112710.0,112700.0,1e-08]
[1760498141356,1.56663975,112710.0,112700.0,0.01535036]
[1760498141559,1.56663975,112710.0,112700.0,1e-08]
[1760498142344,1.55040108,112710.0,112700.0,1e-08]
[1760498142558,1.55040108,112710.0,112700.0,0.00847051]
[1760498143140,0.5,112710.0,112700.0,0.19266208]
[1760498144156,0.5,112710.0,112700.0,0.17746229]
[1760498144577,0.5,112710.0,112700.0,0.17846229]
[1760498144780,0.5,112710.0,112700.0,0.17946229]
[1760498145574,0.51743279,112720.0,112710.0,0.17744654]
[1760498146216,0.72639141,112730.0,112720.0,0.1774308]
[1760498146444,0.01601991,112730.0,112720.0,0.1774308]
[1760498146648,0.53343497,112730.0,112720.0,0.1774308]
[1760498147328,0.35601991,112730.0,112720.0,0.1774308]
[1760498147533,0.88897445,112730.0,112720.0,0.1774308]
[1760498147748,0.88897445,112730.0,112720.0,0.1784308]
[1760498149514,1.06638951,112730.0,112720.0,0.1784308]
[1760498150066,0.88897445,112730.0,112720.0,0.1784308]
[1760498150266,0.3404,112730.0,112720.0,0.1784308]
[1760498150649,1.0507696,112730.0,112720.0,0.001]
[1760498150861,1.0507696,112730.0,112720.0,0.01791534]
[1760498151072,1.0507696,112730.0,112720.0,0.19534614]
[1760498151281,1.0507696,112730.0,112720.0,0.1784308]
[1760498151505,1.17322441,112730.0,112720.0,0.1784308]
[1760498152335,1.17322441,112730.0,112720.0,0.001]
[1760498152552,1.18801312,112730.0,112720.0,0.1950053]
[1760498152784,1.18801312,112730.0,112720.0,0.001]
[1760498152998,1.18801312,112730.0,112720.0,0.01770005]
[1760498153452,0.53375442,112730.0,112720.0,0.19513085]
[1760498153668,1.18801312,112730.0,112720.0,0.01770005]
[1760498155463,1.18801312,112730.0,112720.0,0.001]
[1760498157046,0.53375442,112730.0,112720.0,0.001]
[1760498157214,1.18801312,112730.0,112720.0,0.001]
[1760498157418,0.17744654,112710.0,112700.0,0.18633472]
[1760498158257,0.83170299,112720.0,112700.0,0.18633472]
[1760498158542,0.51744429,112720.0,112710.0,0.19468415]
[1760498158763,0.51744429,112720.0,112700.0,0.18633472]
[1760498159046,1.17170299,112720.0,112700.0,0.18633472]
[1760498159600,0.17744654,112710.0,112700.0,0.18733472]
[1760498160223,0.83170524,112710.0,112700.0,1e-08]
[1760498160430,1.17170524,112710.0,112700.0,0.00100001]
[1760498161077,1.17170524,112710.0,112700.0,1e-08]
[1760498161525,1.17170524,112710.0,112700.0,0.00100001]
[1760498161989,1.19982372,112710.0,112700.0,0.00100001]
[1760498162203,1.19982372,112710.0,112700.0,1e-08]
[1760498162799,0.51746228,112700.0,112690.0,0.00152449]
[1760498163087,1.18801863,112700.0,112690.0,0.00165745]
[1760498163885,1.20193269,112700.0,112690.0,0.00165745]
[1760498164721,1.20193269,112700.0,112650.0,0.0717521]
[1760498164722,0.51752529,112660.0,112650.0,0.0717521]
[1760498164920,1.17183382,112660.0,112650.0,0.0717521]
[1760498165180,0.17754105,112650.0,112640.0,0.10960744]
[1760498165410,0.83179975,112650.0,112640.0,0.12736312]
[1760498166050,0.84625115,112650.0,112640.0,0.12736312]
[1760498166441,0.84625115,112650.0,112640.0,0.30591993]
[1760498166641,0.84625115,112650.0,112640.0,0.28816425]
[1760498166846,1.17183382,112660.0,112640.0,0.28816425]
[1760498167102,0.02219263,112650.0,112640.0,0.28816425]
[1760498167283,0.02219263,112650.0,112640.0,0.28916425]
[1760498167605,0.19973368,112650.0,112640.0,0.28916425]
[1760498167774,0.17754105,112650.0,112640.0,0.28716425]
[1760498167987,0.19227274,112650.0,112640.0,0.28716425]
[1760498168557,0.51757512,112660.0,112650.0,0.17754105]
[1760498168774,0.51757512,112660.0,112640.0,0.28816425]
[1760498168999,0.51757512,112660.0,112650.0,0.01663904]
[1760498169411,0.53222798,112660.0,112650.0,0.01663904]
[1760498170206,0.53222798,112660.0,112650.0,0.01894225]
[1760498171001,0.53222798,112660.0,112650.0,0.1964833]
[1760498171214,0.53222798,112660.0,112650.0,0.17984426]
[1760498173246,0.35470269,112660.0,112650.0,0.17984426]
[1760498174802,0.01470269,112660.0,112650.0,0.17984426]
[1760498175628,0.21441864,112660.0,112650.0,0.00230321]
[1760498175761,0.19222798,112660.0,112650.0,0.19759836]
[1760498175999,0.01470269,112660.0,112650.0,0.18184426]
[1760498176199,0.21208654,112660.0,112650.0,0.19959836]
[1760498176407,0.01470269,112660.0,112650.0,0.19859836]
[1760498176813,0.01470269,112660.0,112650.0,0.19959836]
[1760498177027,0.01470269,112660.0,112650.0,0.18184426]
[1760498177250,0.01470269,112660.0,112650.0,0.18084426]
[1760498177508,0.01470269,112660.0,112650.0,0.18184426]
[1760498177854,0.03689335,112660.0,112650.0,0.18184426]
[1760498178255,0.01470269,112660.0,112650.0,0.18184426]
[1760498178694,0.19222798,112660.0,112650.0,0.18184426]
[1760498181086,0.01470269,112660.0,112650.0,0.18184426]
[1760498181499,4.983e-05,112660.0,112650.0,0.18184426]
[1760498181869,0.01498978,112660.0,112650.0,0.18184426]
[1760498182038,0.19251507,112660.0,112650.0,0.18184426]
[1760498182279,0.83183382,112660.0,112650.0,0.18184426]
[1760498182482,0.17757512,112660.0,112650.0,0.18184426]
[1760498182686,4.983e-05,112660.0,112650.0,0.18184426]
[1760498183200,4.983e-05,112660.0,112650.0,0.29376426]
[1760498183354,4.983e-05,112660.0,112650.0,0.32994654]
[1760498183769,4.983e-05,112660.0,112650.0,0.32998654]
[1760498184169,4.983e-05,112660.0,112650.0,0.29380426]
[1760498184382,4.983e-05,112660.0,112650.0,0.29280426]
[1760498184573,4.983e-05,112660.0,112650.0,0.29380426]
[1760498184910,4.983e-05,112660.0,112650.0,0.21802654]
[1760498185092,4.983e-05,112660.0,112650.0,0.32906654]
[1760498185404,4.983e-05,112660.0,112650.0,0.96197536]
[1760498186108,4.983e-05,112660.0,112650.0,1.07401536]
[1760498186364,4.983e-05,112660.0,112650.0,1.41401536]
[1760498186776,0.00887311,112700.0,112690.0,0.17747803]
[1760498187387,0.18633539,112700.0,112690.0,0.17747803]
[1760498187602,0.20130063,112700.0,112690.0,0.17747803]
[1760498188013,0.01496524,112700.0,112690.0,0.17747803]
[1760498188439,0.83323058,112710.0,112690.0,0.17747803]
[1760498188659,0.83323058,112710.0,112700.0,0.01562353]
[1760498188943,1.17323058,112710.0,112700.0,0.01562353]
[1760498189955,0.99578306,112710.0,112700.0,0.18818052]
[1760498190169,0.99578306,112710.0,112700.0,0.19290269]
[1760498190170,0.00152436,112710.0,112700.0,0.19290269]
[1760498190387,0.00152436,112710.0,112700.0,0.28946228]
[1760498190599,0.00152436,112710.0,112700.0,0.17746228]
[1760498190823,0.00152436,112710.0,112700.0,0.28946228]
[1760498191007,0.00152436,112710.0,112700.0,0.28950228]
[1760498191246,0.00152436,112710.0,112700.0,1.06963338]
[1760498191458,0.00152436,112710.0,112700.0,0.95859338]
[1760498191664,0.00152436,112710.0,112700.0,1.07063338]
[1760498192515,0.00152436,112710.0,112700.0,0.30433468]
[1760498192948,0.00152436,112710.0,112700.0,0.41637468]
[1760498193164,0.00152436,112710.0,112700.0,0.41737468]
[1760498193782,0.00152436,112710.0,112700.0,0.30533468]
[1760498194522,0.00152436,112710.0,112700.0,0.41733468]
[1760498194727,0.00152436,112710.0,112700.0,0.30533468]
[1760498195285,0.00152436,112710.0,112700.0,0.41733468]
[1760498195894,0.00152436,112710.0,112700.0,0.30533468]
[1760498196596,0.00152436,112710.0,112700.0,0.41733468]
[1760498197360,0.00152436,112710.0,112700.0,0.30533468]
[1760498197935,0.00152436,112710.0,112700.0,0.41729468]
[1760498198387,0.00152436,112710.0,112700.0,0.30533468]
[1760498198969,0.00152436,112710.0,112700.0,0.41729468]
[1760498199166,0.00152436,112710.0,112700.0,0.30533468]
[1760498199356,0.00152436,112710.0,112700.0,0.41729468]
[1760498201022,0.00152436,112710.0,112700.0,0.30533468]
[1760498201637,0.00152436,112710.0,112700.0,0.41725468]
[1760498202148,0.00152436,112710.0,112700.0,0.30533468]
[1760498202360,0.00152436,112710.0,112700.0,0.95959338]
[1760498202554,0.00152436,112710.0,112700.0,1.07151338]
[1760498202777,0.00152436,112710.0,112700.0,0.41725468]
[1760498202922,0.25800773,112750.0,112730.0,0.17741506]
[1760498203127,0.91239949,112750.0,112730.0,0.17741506]
[1760498203338,0.17739932,112740.0,112730.0,0.17741506]
[1760498204086,0.1910615,112740.0,112730.0,0.17741506]
[1760498204505,0.01366218,112740.0,112730.0,0.17741506]
[1760498204961,0.84055866,112750.0,112730.0,0.17741506]
[1760498205172,1.18055866,112750.0,112740.0,0.01697069]
[1760498205374,0.00013306,112750.0,112740.0,0.19437001]
[1760498205584,0.17751665,112750.0,112740.0,0.194365]
[1760498206256,0.51751665,112750.0,112740.0,0.194365]
[1760498206690,0.51751665,112750.0,112730.0,0.28933506]
[1760498206867,0.17739932,112740.0,112730.0,0.17741506]
[1760498207114,1.17177535,112750.0,112740.0,0.17739932]
[1760498207330,0.51751665,112750.0,112740.0,0.17739932]
[1760498207759,0.99439176,112750.0,112740.0,0.17739932]
[1760498208172,0.51751665,112750.0,112740.0,0.17739932]
[1760498208819,0.34013306,112750.0,112740.0,0.17739932]
[1760498209231,0.00243395,112750.0,112740.0,0.17739932]
[1760498210208,0.17981754,112750.0,112740.0,0.17739932]
[1760498210421,0.17739932,112740.0,112710.0,0.18631582]
[1760498210618,0.19959265,112730.0,112720.0,0.01774308]
[1760498210824,1.17167447,112730.0,112720.0,0.01774308]
[1760498212199,1.17167447,112730.0,112720.0,0.19617388]
[1760498212404,1.17167447,112730.0,112720.0,0.1784308]
[1760498212720,0.51741577,112730.0,112720.0,0.1784308]
[1760498213322,1.04965633,112730.0,112720.0,0.1784308]
[1760498213545,1.04965633,112730.0,112720.0,0.002]
[1760498213790,1.06596469,112730.0,112720.0,0.002]
[1760498214397,1.06596469,112730.0,112720.0,0.001]
[1760498214804,0.34,112710.0,112700.0,0.186335]
[1760498215050,0.87224056,112710.0,112700.0,0.186335]
[1760498215230,0.88856157,112710.0,112700.0,0.186335]
[1760498215459,0.87224056,112710.0,112700.0,0.186335]
[1760498215798,0.34,112710.0,112700.0,0.186335]
[1760498216000,0.87224056,112710.0,112700.0,0.186335]
[1760498216200,0.88856866,112710.0,112700.0,0.187335]
[1760498216602,0.88856866,112710.0,112700.0,0.188335]
[1760498217011,0.3563281,112710.0,112700.0,0.188335]
[1760498217229,0.88856866,112710.0,112700.0,0.188335]
[1760498219970,0.88856866,112710.0,112700.0,0.002]
[1760498220159,1.0660152,112710.0,112700.0,0.002]
[1760498220756,1.0660152,112710.0,112700.0,0.001]
[1760498220981,0.34,112700.0,112690.0,0.17900171]
[1760498221194,0.88856866,112700.0,112690.0,0.17900171]
[1760498221918,0.88856888,112700.0,112690.0,0.17900171]
[1760498222117,0.87224056,112700.0,112690.0,0.17900171]
[1760498222375,0.87224056,112700.0,112690.0,0.18000171]
[1760498222586,1.06602642,112700.0,112690.0,0.18000171]
[1760498222799,1.06602642,112700.0,112690.0,0.0025245]
[1760498223003,1.02252642,112700.0,112690.0,0.0025245]
[1760498224643,1.02252642,112700.0,112690.0,0.0015245]
[1760498225106,1.55476698,112700.0,112690.0,0.0015245]
[1760498225860,1.59559858,112700.0,112690.0,0.0015245]
[1760498226331,1.56868089,112700.0,112690.0,0.0015245]
[1760498226648,1.59557707,112700.0,112690.0,0.0015245]
[1760498226857,1.62227799,112700.0,112690.0,0.0015245]
[1760498227489,1.61413701,112700.0,112690.0,0.0015245]
[1760498227714,1.03644033,112700.0,112690.0,0.0015245]
[1760498227932,1.03638552,112700.0,112690.0,0.0015245]
[1760498228099,1.03738552,112700.0,112690.0,0.0015245]
[1760498228335,1.03838552,112700.0,112690.0,0.0015245]
[1760498228899,1.03738552,112700.0,112690.0,0.0015245]
[1760498229298,1.03638552,112700.0,112690.0,0.0015245]
[1760498230778,1.02247161,112700.0,112690.0,0.0015245]
[1760498231616,0.54850933,112700.0,112690.0,0.17900253]
[1760498231870,0.53224056,112710.0,112700.0,0.1774603]
[1760498232082,0.7096871,112710.0,112700.0,0.1774603]
[1760498232545,0.7096871,112710.0,112690.0,0.18787643]
[1760498232763,0.70970284,112700.0,112690.0,0.0015245]
[1760498233175,1.04970284,112700.0,112690.0,0.0015245]
[1760498233382,1.06595021,112700.0,112690.0,0.0015245]
[1760498233603,1.59819077,112700.0,112690.0,0.0015245]
[1760498234041,1.68787285,112700.0,112690.0,0.0015245]
[1760498234254,1.04978146,112660.0,112650.0,0.01737772]
[1760498234463,1.04978146,112660.0,112650.0,0.01746621]
[1760498235171,1.04978146,112660.0,112650.0,0.19500726]
[1760498235426,1.04978146,112660.0,112650.0,0.17762954]
[1760498236364,1.04978146,112660.0,112650.0,8.849e-05]
[1760498236566,1.04978146,112660.0,112650.0,0.01805178]
[1760498237072,1.04978146,112660.0,112650.0,0.01905178]
[1760498237250,1.04978146,112660.0,112650.0,0.19659283]
[1760498237455,1.04978146,112660.0,112650.0,0.17962954]
[1760498237664,0.34,112660.0,112650.0,0.17962954]
[1760498237862,0.34,112670.0,112660.0,0.17750986]
[1760498238190,1.0497501,112670.0,112660.0,0.17750986]
[1760498238528,1.0497501,112670.0,112650.0,0.18850659]
[1760498238779,0.70976585,112660.0,112650.0,0.17862954]
[1760498238981,0.70976585,112660.0,112650.0,0.00108849]
[1760498239223,1.04976585,112660.0,112650.0,0.01846489]
[1760498239947,1.04976585,112660.0,112650.0,0.0197681]
[1760498240153,1.04976585,112660.0,112650.0,0.0023917]
[1760498240684,1.06601692,112660.0,112650.0,0.0023917]
[1760498240889,1.06601692,112660.0,112650.0,0.0033917]
[1760498241759,1.58200641,112660.0,112650.0,0.0033917]
[1760498241995,1.5982553,112660.0,112650.0,0.0033917]
[1760498242465,1.5982553,112660.0,112650.0,0.0023917]
[1760498243533,1.06701474,112660.0,112650.0,0.0023917]
[1760498243766,1.06801474,112660.0,112650.0,0.0023917]
[1760498243976,1.08193333,112660.0,112650.0,0.0023917]
[1760498245914,0.37216748,112660.0,112650.0,0.0023917]
[1760498246134,0.74193333,112660.0,112650.0,0.0023917]
[1760498246351,1.08193333,112660.0,112650.0,0.0023917]
[1760498246825,1.08093333,112660.0,112650.0,0.0023917]
[1760498247038,1.07993333,112660.0,112650.0,0.0023917]
[1760498247253,0.84226033,112660.0,112650.0,0.0023917]
[1760498247686,1.37450089,112660.0,112650.0,0.0023917]
[1760498247899,1.04976585,112660.0,112650.0,0.0023917]
[1760498248344,1.58200641,112660.0,112650.0,0.0023917]
[1760498249656,1.60075137,112660.0,112650.0,0.0023917]
[1760498249862,1.61467017,112660.0,112650.0,0.0023917]
[1760498250288,1.70535225,112660.0,112650.0,0.0023917]
[1760498250504,1.70635225,112660.0,112650.0,0.0023917]
[1760498250732,0.64187113,112660.0,112650.0,0.0023917]
[1760498250943,1.70635225,112660.0,112650.0,0.0023917]
[1760498251378,1.61667017,112660.0,112650.0,0.0023917]
[1760498251604,1.08442961,112660.0,112650.0,0.0023917]
[1760498251813,1.05176585,112660.0,112650.0,0.0023917]
[1760498252277,0.002,112660.0,112650.0,0.0023917]
[1760498252488,0.002,112660.0,112650.0,0.19603838]
[1760498252726,0.002,112660.0,112650.0,0.17993275]
[1760498252933,0.73395651,112660.0,112650.0,0.17993275]
[1760498253145,0.71076585,112660.0,112650.0,0.17993275]
[1760498253394,0.70976585,112660.0,112650.0,0.17993275]
[1760498253599,0.71176585,112660.0,112650.0,0.17993275]
[1760498253774,0.71076585,112660.0,112650.0,0.17993275]
[1760498254139,0.001,112660.0,112650.0,0.18093275]
[1760498255112,0.70975023,112670.0,112650.0,0.18093275]
[1760498255335,1.0497501,112670.0,112660.0,0.19371374]
[1760498255543,1.0497501,112670.0,112660.0,0.17925254]
[1760498255753,1.0497501,112670.0,112660.0,0.19589031]
[1760498256639,1.0497501,112670.0,112660.0,0.17925254]
[1760498257289,0.87224056,112670.0,112660.0,0.17925254]
[1760498257481,1.0497501,112670.0,112660.0,0.17925254]
[1760498257622,0.87224056,112670.0,112660.0,0.17925254]
[1760498259281,0.88851517,112670.0,112660.0,0.17925254]
[1760498259853,1.06602471,112670.0,112660.0,0.17925254]
[1760498260098,1.06602471,112670.0,112660.0,0.00172725]
[1760498264374,0.35627461,112670.0,112660.0,0.17925254]
[1760498264650,0.35627461,112670.0,112660.0,0.19453226]
[1760498264886,1.06602471,112670.0,112660.0,0.00172725]
[1760498267308,1.06602471,112670.0,112660.0,0.17925254]
[1760498267592,1.0497501,112670.0,112660.0,0.17925254]
[1760498267866,0.87224056,112670.0,112660.0,0.17925254]
[1760498268248,1.0497501,112670.0,112660.0,0.00172725]
[1760498271261,1.0660603,112670.0,112660.0,0.00172725]
[1760498273200,1.0497501,112670.0,112660.0,0.00172725]
[1760498273413,1.17256122,112670.0,112660.0,0.00172725]
[1760498275656,1.1864777,112670.0,112660.0,0.00172725]
[1760498276085,0.53142602,112670.0,112660.0,0.00172725]
[1760498276298,1.1864777,112670.0,112660.0,0.00172725]
[1760498279307,1.20280694,112670.0,112660.0,0.00172725]
[1760498279735,1.17257697,112660.0,112650.0,8.849e-05]
[1760498279883,1.18890621,112660.0,112650.0,8.849e-05]
[1760498280090,1.18890621,112660.0,112650.0,0.00066437]
[1760498280934,1.18990621,112660.0,112650.0,0.00066437]
[1760498281974,1.19090621,112660.0,112650.0,0.00066437]
[1760498282394,1.20482548,112660.0,112650.0,0.00066437]
[1760498283181,0.2097738,112660.0,112650.0,0.00066437]
[1760498283406,0.84849624,112660.0,112650.0,0.00066437]
[1760498283621,1.18849624,112660.0,112650.0,0.00066437]
[1760498285780,1.20481613,112660.0,112650.0,0.00066437]
[1760498287510,1.18849624,112660.0,112650.0,0.00066437]
[1760498288410,1.20480909,112660.0,112650.0,0.00066437]
[1760498289273,0.53344456,112660.0,112650.0,0.00066437]
[1760498289489,0.84849624,112660.0,112650.0,0.00066437]
[1760498289693,0.92918759,112660.0,112650.0,0.00066437]
[1760498289907,1.28550002,112660.0,112650.0,0.00066437]
[1760498290146,1.28450002,112660.0,112650.0,0.00066437]
[1760498290360,0.51754105,112650.0,112640.0,0.10960744]
[1760498290569,0.8326558,112610.0,112600.0,0.0002]
[1760498290787,0.17760412,112610.0,112600.0,0.00069845]
[1760498291261,0.8326558,112610.0,112600.0,0.00069845]
[1760498291483,1.1726558,112610.0,112600.0,0.00069845]
[1760498292898,1.1726558,112610.0,112600.0,0.00169845]
[1760498293315,1.1726558,112610.0,112600.0,0.00069845]
[1760498298183,0.34,112610.0,112600.0,0.00069845]
[1760498298387,0.34,112610.0,112600.0,0.17831834]
[1760498298590,0.84656615,112620.0,112610.0,0.17760412]
[1760498298812,0.34,112610.0,112600.0,0.17831834]
[1760498299041,1.1726558,112610.0,112600.0,0.17831834]
[1760498299493,1.1726558,112610.0,112600.0,0.00069845]
[1760498299712,1.1726558,112610.0,112600.0,0.17831834]
[1760498300162,1.1726558,112610.0,112600.0,0.00069845]
[1760498300585,0.99505168,112610.0,112600.0,0.17831834]
[1760498300923,0.34,112610.0,112600.0,0.17831834]
[1760498301132,0.34,112610.0,112600.0,0.18119914]
[1760498301342,1.1726558,112610.0,112600.0,0.18119914]
[1760498301840,1.1726558,112610.0,112600.0,0.00357925]
[1760498302058,1.1726558,112610.0,112600.0,0.00457925]
[1760498302699,1.1726558,112610.0,112600.0,0.00357925]
[1760498304369,0.8326558,112610.0,112600.0,0.00357925]
[1760498305193,0.84657935,112610.0,112600.0,0.00357925]
[1760498306521,1.18657935,112610.0,112600.0,0.00357925]
[1760498308100,1.2028855,112610.0,112600.0,0.00357925]
[1760498309758,1.20289206,112610.0,112600.0,0.00357925]
[1760498311572,0.96732892,112610.0,112600.0,0.00357925]
[1760498311778,1.14493304,112610.0,112600.0,0.00357925]
[1760498314516,0.84152883,112630.0,112610.0,0.17760237]
[1760498314720,0.17760412,112610.0,112600.0,0.17831834]
[1760498314846,0.34,112610.0,112600.0,0.19435376]
[1760498315300,0.18647715,112630.0,112610.0,0.17759511]
[1760498315507,0.18647715,112630.0,112620.0,0.17758835]
[1760498315508,0.01633073,112630.0,112620.0,0.17758835]
[1760498315741,0.36319657,112630.0,112620.0,0.17758835]
[1760498315941,0.34,112630.0,112620.0,0.17758835]
[1760498316127,0.51757258,112630.0,112620.0,0.17758835]
[1760498316375,0.51757258,112630.0,112610.0,0.18647531]
[1760498316585,0.17758835,112620.0,112600.0,0.00169845]
[1760498316830,0.17760412,112610.0,112600.0,0.17931834]
[1760498317037,1.17264003,112620.0,112600.0,0.17931834]
[1760498317249,0.19980463,112610.0,112600.0,0.17931834]
[1760498317471,1.17264003,112620.0,112600.0,0.17831834]
[1760498317708,1.17264003,112620.0,112610.0,0.17760412]
[1760498317925,0.34,112620.0,112610.0,0.17760412]
[1760498318134,0.51758835,112620.0,112610.0,0.17760412]
[1760498319436,0.51758835,112620.0,112600.0,0.17831834]
[1760498319644,0.02220051,112610.0,112600.0,0.17831834]
[1760498320712,1.17264003,112620.0,112610.0,0.17760412]